lending/lending_fUSD_20250131
["ID","MTS","AMOUNT","RATE_DAILY","PERIOD"]
[351018494,1738293033414,-151.0,0.00018899,2]
[351018495,1738293033425,-151.0,0.00018899,2]
[351018496,1738293033436,-151.654882,0.00018899,2]
[351018497,1738293033446,-151.0,0.00018899,2]
[351018498,1738293033456,-151.0,0.00018899,2]
[351018499,1738293033466,-151.0,0.00018899,2]
[351018500,1738293033476,-151.0,0.00018899,2]
[351018501,1738293033486,-300.0,0.00018899,2]
[351018502,1738293033496,-1020.0,0.00018899,2]
[351018503,1738293033506,-140131.1064611,0.000189,2]
[351018504,1738293033520,-487.44474986,0.000189,2]
[351018508,1738293038225,-20840.0,0.000189,2]
[351018509,1738293038330,-7294.20168682,0.000189,2]
[351018510,1738293038343,-661.957363,0.000189,2]
[351018511,1738293038436,-302.0276364,0.000189,2]
[351018512,1738293038595,-992.83322886,0.000189,2]
[351018542,1738293040423,-307.77216958,0.000189,2]
[351018543,1738293040474,-312420.00000004,0.000189,2]
[351018544,1738293040527,-437.08218695,0.000189,2]
[351018545,1738293040683,-3071.6108034,0.000189,2]
[351018546,1738293040696,-1042.4,0.000189,2]
[351018547,1738293040708,-10420.0,0.000189,2]
[351018579,1738293043506,-32.95383416,0.00018877,2]
[351018580,1738293043519,-124.47016202,0.00018877,2]
[351018581,1738293043530,-51983.9052421,0.000189,2]
[351018582,1738293043542,-309.819988,0.000189,2]
[351018628,1738293046374,-3303.97452,0.000189,2]
[351018639,1738293046483,-4105.3601086,0.000189,2]
[351018644,1738293046696,-29821.62734435,0.000189,2]
[351018645,1738293046731,-222.94929649,0.000189,2]
[351018646,1738293046745,-291.938,0.000189,2]
[351018656,1738293209549,1000.0,0.00012,2]
[351018657,1738293252565,6159.6,0.00012,2]
[351018658,1738293379642,289.75,0.00012,2]
[351018659,1738293474720,182.13,0.00010137,2]
[351018661,1738293906406,237.59273045,0.0001194,2]
[351018662,1738293908166,508281.45411446,0.00012,2]
[351018663,1738293920376,2420.99893718,9e-05,2]
[351018664,1738293937162,15992.88134444,8e-05,2]
[351018665,1738293955632,24908.04318583,6.94e-05,2]
[351018666,1738293963524,13258.99694827,0.0001,2]
[351018667,1738293967828,9019.6916737,8e-05,2]
[351018668,1738294029987,528.13041336,0.00011999,2]
[351018669,1738294079109,19527.96094064,0.0001,2]
[351018670,1738294082811,921562.87065482,0.0001,2]
[351018682,1738294163199,-1000.0,0.00013,2]
[351018683,1738294163223,-252.89,0.00013699,2]
[351018684,1738294163247,-1000.0,0.00014,2]
[351018685,1738294163271,-264.5654629,0.000142,2]
[351018686,1738294163295,-150.0,0.000143,2]
[351018687,1738294163317,-167.56,0.00014363,2]
[351018688,1738294163342,-1000.0,0.00015,2]
[351018689,1738294163366,-447.51,0.00015412,2]
[351018690,1738294163388,-303.1041591,0.00016,2]
[351018713,1738294231639,-696.8958409,0.00016,2]
[351018714,1738294231650,-1332.83185138,0.000168,2]
[351018715,1738294231660,-1000.0,0.00017,3]
[351018716,1738294231671,-298.42,0.00017256,2]
[351018717,1738294231681,-1670.21,0.00017269,2]
[351018718,1738294231690,-500.0,0.00017277,2]
[351018719,1738294231700,-298.42,0.00017278,2]
[351018720,1738294231710,-460.12,0.00017292,2]
[351018721,1738294231720,-1000.0,0.00017353,2]
[351018722,1738294231730,-200.0,0.00017372,2]
[351018723,1738294231739,-166.13,0.00017392,2]
[351018724,1738294231749,-500.0,0.00017408,2]
[351018725,1738294231762,-163.44,0.00017418,2]
[351018726,1738294231772,-2081.83519302,0.00017452,2]
[351018727,1738294231784,-240.13480698,0.00017452,2]
[351018728,1738294231795,-716.22,0.00017465,2]
[351018729,1738294231805,-232.27,0.00017486,2]
[351018730,1738294231815,-298.42,0.000175,2]
[351018731,1738294231825,-298.42,0.000175,2]
[351018732,1738294231836,-447.51,0.00017676,2]
[351018733,1738294231846,-151.05,0.0001775,30]
[351018734,1738294231856,-150.0,0.00018017,2]
[351018735,1738294231865,-500.0,0.00018068,2]
[351018736,1738294231875,-900.0,0.00018068,2]
[351018737,1738294231886,-298.42,0.00018078,2]
[351018738,1738294231896,-298.42,0.00018078,2]
[351018739,1738294231906,-298.42,0.00018078,2]
[351018740,1738294231916,-298.42,0.00018078,2]
[351018741,1738294231927,-298.42,0.00018178,2]
[351018742,1738294231937,-983.86,0.00018178,2]
[351018743,1738294231947,-405.0,0.00018269,2]
[351018744,1738294231956,-151.30533168,0.00018269,2]
[351018745,1738294231966,-983.86,0.00018278,2]
[351018746,1738294231975,-298.42,0.00018278,2]
[351018747,1738294231985,-177.96,0.00018516,2]
[351018748,1738294231995,-417.80355407,0.00018583,2]
[351018749,1738294232005,-1010.0,0.000186,2]
[351018750,1738294232015,-76.21620145,0.00018617,2]
[351018751,1738294232036,-497.65536239,0.00018617,2]
[351018752,1738294232048,-981.17574683,0.00018617,2]
[351018753,1738294232058,-3000.0,0.0001871,2]
[351018754,1738294232067,-225.7,0.00018732,2]
[351018755,1738294232077,-500.0,0.00018748,2]
[351018756,1738294232088,-168.17901141,0.00018749,2]
[351018758,1738294232097,-500.0,0.00018749,2]
[351018760,1738294232107,-963.5452418,0.00018749,2]
[351018762,1738294232118,-193.0747582,0.00018749,2]
[351018763,1738294232128,-1252.9479,0.00018797,2]
[351018764,1738294232137,-729.11026486,0.00018799,2]
[351018766,1738294232147,-1796.4771265,0.000188,2]
[351018768,1738294232159,-1556.79302963,0.000188,2]
[351018770,1738294232168,-542.173,0.000188,2]
[351018772,1738294232177,-539.6255,0.000188,2]
[351018774,1738294232187,-1120.6513,0.000188,2]
[351018776,1738294232196,-1367.519,0.000188,2]
[351018778,1738294232206,-2038.87,0.000188,2]
[351018780,1738294232216,-184.72588764,0.000188,2]
[351018782,1738294232225,-2832.64228273,0.000188,2]
[351018787,1738294232267,-276.77515906,0.000188,2]
[351018803,1738294232355,-300.0,0.000188,2]
[351018807,1738294232367,-13.13360979,0.000188,2]
[351018810,1738294232377,-226.9902,0.000188,2]
[351018812,1738294232387,-3422.5510515,0.00018831,2]
[351018814,1738294232398,-3422.5510515,0.00018862,2]
[351018816,1738294232408,-500.0,0.00018873,2]
[351018818,1738294232418,-500.0,0.00018873,2]
[351018820,1738294232427,-154.63592669,0.00018877,2]
[351018822,1738294232437,-17203.96965971,0.0001888,2]
[351018841,1738294237414,-34202.06033759,0.0001888,2]
[351018842,1738294237425,-1462.27,0.0001889,2]
[351018843,1738294237436,-1050.049386,0.00018891,2]
[351018844,1738294237447,-1616.9265472,0.00018891,2]
[351018845,1738294237458,-2521.9268786,0.00018891,2]
[351018846,1738294237469,-3422.5510515,0.00018893,2]
[351018847,1738294237479,-5000.0,0.00018896,4]
[351018848,1738294237490,-300.0,0.00018899,2]
[351018849,1738294237502,-999.0,0.00018899,2]
[351018854,1738294237838,-14094.58218812,0.000189,2]
[351018857,1738294237870,-965.35627135,0.000189,2]
[351018860,1738294237882,-4519.19486859,0.000189,2]
[351018861,1738294237894,-641.17075531,0.000189,2]
[351018862,1738294237907,-11341.45376007,0.000189,2]
[351018863,1738294237923,-55176.61152734,0.000189,2]
[351018864,1738294237938,-299.68851232,0.000189,2]
[351018865,1738294237948,-263277.7177222,0.000189,2]
[351018866,1738294237961,-7561.77677172,0.000189,2]
[351018867,1738294237986,-4373.16508401,0.000189,2]
[351018868,1738294237999,-6288.7967034,0.000189,2]
[351018869,1738294238012,-264.76642591,0.000189,2]
[351018870,1738294238024,-1234.75311848,0.000189,2]
[351018871,1738294238035,-442.20931429,0.000189,2]
[351018877,1738294239545,-744.4134532,0.000189,2]
[351018945,1738294242510,-770.44300077,0.000189,2]
[351019001,1738294857489,167.9,0.00010137,2]
[351019003,1738295192145,-269.03946237,0.000144,5]
[351019025,1738295431761,-201.0,0.000141,5]
[351019026,1738295431774,-150.0,0.00014872,2]
[351019027,1738295431784,-52.59055425,0.0001573,2]
[351019028,1738295431796,-97.40944575,0.0001573,2]
[351019029,1738295431806,-476.5,0.0001579,2]
[351019030,1738295431816,-150.0,0.0001595,2]
[351019031,1738295431827,-953.94872,0.00017088,7]
[351019032,1738295431837,-953.94872,0.00017288,7]
[351019033,1738295431847,-572.97,0.00017418,2]
[351019034,1738295431857,-953.94872,0.00017488,7]
[351019035,1738295431867,-300.0,0.00017576,2]
[351019036,1738295431877,-8007.06,0.00017577,2]
[351019037,1738295431887,-406.72,0.0001761,2]
[351019038,1738295431897,-953.94872,0.00017688,7]
[351019039,1738295431907,-151.05,0.00017699,30]
[351019040,1738295431917,-1644.0,0.000177,2]
[351019041,1738295431927,-1000.0,0.00017737,2]
[351019042,1738295431937,-438.33,0.0001789,2]
[351019043,1738295431948,-438.33,0.0001789,2]
[351019044,1738295431958,-437.65,0.0001789,2]
[351019045,1738295431969,-476.5,0.00018054,2]
[351019046,1738295431979,-212.18,0.00018065,2]
[351019047,1738295431989,-800.0,0.00018068,2]
[351019048,1738295432000,-152.0,0.00018088,3]
[351019049,1738295432009,-953.94872,0.00018088,7]
[351019050,1738295432022,-150.0,0.00018278,2]
[351019051,1738295432031,-333.26,0.00018278,2]
[351019052,1738295432041,-438.33,0.00018278,2]
[351019053,1738295432051,-953.94872,0.00018288,7]
[351019054,1738295432060,-156.43705957,0.00018384,2]
[351019055,1738295432070,-347.0,0.00018384,2]
[351019056,1738295432079,-953.94872,0.00018488,7]
[351019057,1738295432090,-152.0,0.00018529,4]
[351019058,1738295432100,-156.43705957,0.00018548,2]
[351019059,1738295432109,-953.94872,0.00018688,7]
[351019060,1738295432119,-156.43705957,0.00018712,2]
[351019061,1738295432128,-293.7417,0.000188,2]
[351019062,1738295432137,-310.2291,0.000188,2]
[351019084,1738295432427,-4168.69655256,0.000188,2]
[351019086,1738295432439,-158.33647512,0.000188,2]
[351019088,1738295432450,-925.296,0.00018831,2]
[351019090,1738295432459,-181.29,0.00018833,2]
[351019092,1738295432469,-1952.3811988,0.00018862,2]
[351019095,1738295432486,-205.74962577,0.00018862,2]
[351019097,1738295432495,-375.1292849,0.00018873,2]
[351019100,1738295432511,-125.4441247,0.00018873,2]
[351019102,1738295432524,-205.86029964,0.00018873,2]
[351019104,1738295432534,-156.43705957,0.00018877,2]
[351019106,1738295432544,-1662.7610964,0.00018891,2]
[351019108,1738295432553,-2560.4153427,0.00018891,2]
[351019111,1738295432562,-490.97202743,0.00018891,2]
[351019117,1738295432616,-289.125,0.00018891,2]
[351019125,1738295432688,-2544.911593,0.00018891,2]
[351019126,1738295432699,-415.88818707,0.00018891,2]
[351019127,1738295432709,-600.31,0.00018893,2]
[351019129,1738295432719,-2158.13082457,0.00018893,2]
[351019131,1738295432728,-300.0,0.00018899,2]
[351019133,1738295432738,-619.54,0.00018899,2]
[351019135,1738295432747,-32.06598836,0.00018899,2]
[351019137,1738295432759,-564.00481255,0.00018899,2]
[351019142,1738295432796,-402.92919909,0.00018899,2]
[351019144,1738295432806,-76.9460981,0.00018899,4]
[351019146,1738295432818,-4923.0539019,0.00018899,4]
[351019148,1738295432827,-228.31902551,0.00018899,2]
[351019150,1738295432837,-1187.0,0.000189,2]
[351019152,1738295432847,-1000.0,0.000189,5]
[351019154,1738295432857,-1000.0,0.000189,7]
[351019158,1738295432879,-1000.0,0.000189,9]
[351019160,1738295432889,-1000.0,0.000189,8]
[351019162,1738295432899,-1000.0,0.000189,11]
[351019164,1738295432909,-9071.62707259,0.000189,2]
[351019199,1738295437557,-1175.72270315,0.000189,2]
[351019200,1738295437720,-626.25008865,0.000189,2]
[351019201,1738295437777,-394.67500275,0.000189,2]
[351019202,1738295437831,-493435.82143284,0.000189,2]
[351019203,1738295437841,-1061.0,0.000189,2]
[351019204,1738295437851,-1547912.72190056,0.000189,2]
[351019205,1738295437862,-5613.0,0.000189,2]
[351019206,1738295437872,-2000.0,0.000189,2]
[351019207,1738295437883,-1009580.16004085,0.000189,2]
[351019208,1738295437894,-2000.0,0.000189,2]
[351019209,1738295437904,-200.0,0.000189,2]
[351019210,1738295437914,-196.77880523,0.000189,2]
[351019211,1738295437926,-196.77880522,0.000189,2]
[351019212,1738295437935,-3000.0,0.000189,2]
[351019213,1738295437946,-285.06887405,0.000189,2]
[351019214,1738295437957,-201.56961273,0.000189,3]
[351019215,1738295437967,-304.94010569,0.000189,2]
[351019216,1738295437979,-458.40699492,0.000189,2]
[351019217,1738295437990,-1742.01750873,0.000189,2]
[351019218,1738295438000,-331.36319117,0.000189,2]
[351019219,1738295438010,-7101.22861643,0.000189,2]
[351019220,1738295438023,-250.0,0.000189,2]
[351019221,1738295438033,-250.0,0.000189,2]
[351019222,1738295438043,-250.0,0.000189,2]
[351019224,1738295438052,-250.0,0.000189,2]
[351019226,1738295438062,-250.0,0.000189,2]
[351019228,1738295438073,-250.0,0.000189,2]
[351019230,1738295438083,-250.0,0.000189,2]
[351019232,1738295438092,-250.0,0.000189,2]
[351019234,1738295438102,-250.0,0.000189,2]
[351019236,1738295438112,-250.0,0.000189,2]
[351019238,1738295438123,-250.0,0.000189,2]
[351019240,1738295438133,-250.0,0.000189,2]
[351019242,1738295438144,-250.0,0.000189,2]
[351019244,1738295438157,-250.0,0.000189,2]
[351019246,1738295438167,-250.0,0.000189,2]
[351019248,1738295438177,-250.0,0.000189,2]
[351019251,1738295438187,-250.0,0.000189,2]
[351019253,1738295438198,-250.0,0.000189,2]
[351019255,1738295438208,-250.0,0.000189,2]
[351019257,1738295438219,-250.0,0.000189,2]
[351019259,1738295438233,-250.0,0.000189,2]
[351019261,1738295438243,-250.0,0.000189,2]
[351019263,1738295438253,-250.0,0.000189,2]
[351019266,1738295438264,-250.0,0.000189,2]
[351019268,1738295438276,-250.0,0.000189,2]
[351019270,1738295438287,-250.0,0.000189,2]
[351019272,1738295438297,-250.0,0.000189,2]
[351019274,1738295438307,-250.0,0.000189,2]
[351019276,1738295438318,-250.0,0.000189,2]
[351019278,1738295438328,-250.0,0.000189,2]
[351019280,1738295438338,-250.0,0.000189,2]
[351019282,1738295438348,-250.0,0.000189,2]
[351019284,1738295438358,-250.0,0.000189,2]
[351019286,1738295438368,-250.0,0.000189,2]
[351019288,1738295438378,-250.0,0.000189,2]
[351019289,1738295438388,-250.0,0.000189,2]
[351019290,1738295438399,-250.0,0.000189,2]
[351019291,1738295438409,-440.3,0.000189,2]
[351019292,1738295438419,-1699.0,0.00018904,2]
[351019293,1738295438428,-1699.0,0.00018904,2]
[351019294,1738295438438,-1699.0,0.00018904,2]
[351019295,1738295438448,-1699.0,0.00018904,2]
[351019296,1738295438458,-1699.0,0.00018904,2]
[351019297,1738295438467,-1699.0,0.00018904,2]
[351019298,1738295438477,-1699.0,0.00018904,2]
[351019299,1738295438488,-1699.0,0.00018904,2]
[351019300,1738295438498,-1699.0,0.00018904,2]
[351019301,1738295438507,-1699.0,0.00018904,2]
[351019303,1738295438517,-1699.0,0.00018904,2]
[351019305,1738295438528,-1699.0,0.00018904,2]
[351019307,1738295438538,-1699.0,0.00018904,2]
[351019309,1738295438548,-1699.0,0.00018904,2]
[351019311,1738295438557,-1699.0,0.00018904,2]
[351019313,1738295438567,-1699.0,0.00018904,2]
[351019315,1738295438577,-1699.0,0.00018904,2]
[351019317,1738295438587,-474.08856561,0.00018904,2]
[351019319,1738295438597,-1059.0,0.00018923,2]
[351019322,1738295438607,-2158.13082457,0.00018924,2]
[351019324,1738295438617,-2158.13082457,0.00018954,2]
[351019326,1738295438628,-152.0,0.00018971,5]
[351019328,1738295438637,-500.81042457,0.00018973,2]
[351019330,1738295438647,-500.66975384,0.00018973,2]
[351019332,1738295438656,-501.19637514,0.00018973,2]
[351019334,1738295438666,-500.0,0.00018973,2]
[351019336,1738295438676,-190.74008483,0.00018973,2]
[351019338,1738295438687,-196.77880522,0.00018984,2]
[351019340,1738295438697,-151.0,0.00018985,2]
[351019342,1738295438706,-151.0,0.00018985,2]
[351019344,1738295438717,-151.188736,0.00018985,2]
[351019346,1738295438727,-151.0,0.00018985,2]
[351019348,1738295438737,-151.0,0.00018985,2]
[351019350,1738295438747,-151.0,0.00018985,2]
[351019352,1738295438757,-348.043867,0.00018985,2]
[351019354,1738295438767,-348.043867,0.00018985,2]
[351019356,1738295438779,-153.566122,0.00018985,2]
[351019358,1738295438789,-151.0,0.00018985,2]
[351019360,1738295438799,-151.0,0.00018985,2]
[351019363,1738295438809,-151.0,0.00018985,2]
[351019365,1738295438820,-151.0,0.00018985,2]
[351019366,1738295438829,-151.0,0.00018985,2]
[351019369,1738295438839,-2158.13082457,0.00018985,2]
[351019371,1738295438849,-151.0,0.00018987,2]
[351019373,1738295438859,-154.265822,0.00018987,2]
[351019375,1738295438869,-151.590984,0.00018987,2]
[351019377,1738295438878,-151.0,0.00018987,2]
[351019379,1738295438888,-151.0,0.00018987,2]
[351019382,1738295438905,-1697.7665932,0.00018987,2]
[351019384,1738295438920,-2614.3188236,0.00018987,2]
[351019386,1738295438931,-151.0,0.00018987,2]
[351019388,1738295438941,-3841.8467128,0.00018987,2]
[351019390,1738295438951,-151.187559,0.00018987,2]
[351019392,1738295438962,-300.0,0.00018999,2]
[351019395,1738295438972,-153.25476685,0.00019,4]
[351019397,1738295438983,-1168011.327458,0.00019,2]
[351019399,1738295438993,-2358.0,0.00019,2]
[351019401,1738295439003,-304791.0,0.00019,2]
[351019403,1738295439013,-5000.0,0.00019,2]
[351019405,1738295439025,-153.442516,0.00019,2]
[351019407,1738295439035,-151.291979,0.00019,2]
[351019409,1738295439045,-153.97314,0.00019,2]
[351019411,1738295439055,-151.0,0.00019,2]
[351019413,1738295439065,-151.0,0.00019,2]
[351019415,1738295439075,-151.0,0.00019,2]
[351019418,1738295439088,-151.0,0.00019,2]
[351019420,1738295439098,-151.954032,0.00019,2]
[351019422,1738295439107,-151.0,0.00019,2]
[351019424,1738295439118,-151.0,0.00019,2]
[351019426,1738295439128,-152.043706,0.00019,2]
[351019428,1738295439138,-151.481589,0.00019,2]
[351019430,1738295439148,-152.086647,0.00019,2]
[351019432,1738295439159,-151.0,0.00019,2]
[351019434,1738295439171,-152.316693,0.00019,2]
[351019436,1738295439183,-151.0,0.00019,2]
[351019438,1738295439193,-151.483382,0.00019,2]
[351019440,1738295439203,-186.951787,0.00019,2]
[351019443,1738295439213,-151.0,0.00019,2]
[351019445,1738295439224,-151.460878,0.00019,2]
[351019447,1738295439234,-174.796365,0.00019,2]
[351019449,1738295439245,-151.0,0.00019,2]
[351019451,1738295439255,-151.0,0.00019,2]
[351019453,1738295439266,-151.0,0.00019,2]
[351019455,1738295439279,-151.0,0.00019,2]
[351019458,1738295439290,-151.0,0.00019,2]
[351019460,1738295439301,-151.0,0.00019,2]
[351019462,1738295439311,-151.0,0.00019,2]
[351019464,1738295439322,-151.0,0.00019,2]
[351019466,1738295439333,-151.0,0.00019,2]
[351019468,1738295439344,-151.0,0.00019,2]
[351019470,1738295439355,-151.0,0.00019,2]
[351019472,1738295439366,-151.0,0.00019,2]
[351019475,1738295439377,-151.0,0.00019,2]
[351019477,1738295439387,-151.0,0.00019,2]
[351019479,1738295439398,-151.0,0.00019,2]
[351019481,1738295439408,-157.376553,0.00019,2]
[351019484,1738295439423,-151.0,0.00019,2]
[351019487,1738295439433,-151.0,0.00019,2]
[351019489,1738295439444,-190.402555,0.00019,2]
[351019491,1738295439454,-151.0,0.00019,2]
[351019493,1738295439464,-184.926739,0.00019,2]
[351019495,1738295439474,-151.0,0.00019,2]
[351019497,1738295439486,-151.0,0.00019,2]
[351019499,1738295439496,-151.0,0.00019,2]
[351019502,1738295439507,-151.0,0.00019,2]
[351019504,1738295439517,-151.0,0.00019,2]
[351019506,1738295439529,-151.0,0.00019,2]
[351019508,1738295439539,-348.043867,0.00019,2]
[351019510,1738295439549,-348.043867,0.00019,2]
[351019512,1738295439559,-348.043867,0.00019,2]
[351019514,1738295439570,-348.043867,0.00019,2]
[351019516,1738295439579,-151.0,0.00019,2]
[351019517,1738295439590,-151.0,0.00019,2]
[351019518,1738295439599,-151.0,0.00019,2]
[351019520,1738295439609,-151.0,0.00019,2]
[351019522,1738295439620,-151.0,0.00019,2]
[351019523,1738295439631,-151.0,0.00019,2]
[351019524,1738295439641,-151.0,0.00019,2]
[351019525,1738295439650,-151.0,0.00019,2]
[351019526,1738295439660,-225.433209,0.00019,2]
[351019527,1738295439670,-151.0,0.00019,2]
[351019528,1738295439680,-151.0,0.00019,2]
[351019529,1738295439690,-151.0,0.00019,2]
[351019530,1738295439700,-151.0,0.00019,2]
[351019531,1738295439709,-2158.13082457,0.00019016,2]
[351019532,1738295439721,-158.33647511,0.00019023,2]
[351019533,1738295439731,-619.54,0.00019036,2]
[351019534,1738295439747,-156.43705957,0.00019041,2]
[351019535,1738295439761,-2158.13082457,0.00019047,2]
[351019536,1738295439773,-11913.76704624,0.00019066,3]
[351019537,1738295439782,-1271.0,0.00019069,2]
[351019538,1738295439792,-2021.0,0.00019069,2]
[351019539,1738295439802,-151.69,0.00019069,2]
[351019540,1738295439813,-570.382,0.00019069,2]
[351019541,1738295439823,-213.127,0.00019069,2]
[351019542,1738295439833,-195.237,0.00019069,2]
[351019543,1738295439846,-724.803,0.00019069,2]
[351019544,1738295439858,-1867.0,0.00019069,2]
[351019545,1738295439871,-105.71569123,0.00019069,2]
[351019546,1738295439895,-2923.09630877,0.00019069,2]
[351019547,1738295439907,-1263.0,0.00019069,2]
[351019548,1738295439923,-782.0,0.00019069,2]
[351019549,1738295439933,-911.125,0.00019069,2]
[351019550,1738295439943,-538.0,0.00019069,2]
[351019551,1738295439952,-150.449,0.00019069,2]
[351019552,1738295439962,-250.0,0.00019069,2]
[351019553,1738295439972,-179.03,0.00019069,2]
[351019554,1738295439981,-169.0,0.00019069,2]
[351019555,1738295439992,-3908.0,0.00019069,2]
[351019556,1738295440004,-161.092,0.00019069,2]
[351019557,1738295440014,-150.0,0.00019069,2]
[351019558,1738295440027,-1107.0,0.00019069,2]
[351019559,1738295440037,-150.0,0.00019069,2]
[351019560,1738295440046,-200.0,0.00019071,3]
[351019561,1738295440057,-26725.62672754,0.00019072,3]
[351019562,1738295440066,-1291.56233355,0.00019074,3]
[351019563,1738295440076,-26725.62672754,0.00019075,3]
[351019564,1738295440086,-196.77880522,0.00019075,2]
[351019565,1738295440098,-622.99799174,0.00019076,3]
[351019566,1738295440109,-1291.56233355,0.00019077,3]
[351019567,1738295440118,-200.0,0.00019078,3]
[351019568,1738295440130,-2158.13082457,0.00019078,2]
[351019569,1738295440140,-225.7,0.00019083,2]
[351019570,1738295440150,-26725.62672754,0.00019085,3]
[351019571,1738295440163,-761.40773577,0.00019085,3]
[351019572,1738295440176,-636.19219792,0.00019085,3]
[351019573,1738295440350,-6664.5727,0.00019085,3]
[351019574,1738295441220,-625.34,0.00019085,3]
[351019575,1738295441232,-582.45805356,0.00019085,3]
[351019576,1738295441244,-5851.15461637,0.00019085,3]
[351019577,1738295441256,-626.9568637,0.00019085,3]
[351019578,1738295441267,-8565.4008585,0.00019085,3]
[351019579,1738295441281,-9096.64373114,0.00019085,3]
[351019580,1738295441293,-8947.21879473,0.00019085,3]
[351019581,1738295441305,-520.86766258,0.00019085,3]
[351019582,1738295441314,-622.99799174,0.00019086,3]
[351019583,1738295441324,-666.0935917,0.00019089,2]
[351019584,1738295441334,-200.0,0.00019089,2]
[351019585,1738295441344,-200.0,0.00019092,3]
[351019586,1738295441353,-6733.8246186,0.00019095,3]
[351019587,1738295441365,-5179.94242764,0.00019095,3]
[351019588,1738295441374,-3080.65464522,0.000191,2]
[351019589,1738295441384,-200.0,0.00019102,3]
[351019590,1738295441393,-616.95158866,0.00019102,3]
[351019591,1738295441404,-8943.84023489,0.00019102,3]
[351019605,1738295442874,-150.699,0.00019079,2]
[351019606,1738295442885,-269.698,0.00019079,2]
[351019607,1738295442895,-297.4123996,0.00019102,3]
[351019608,1738295442907,-597.50135419,0.00019102,3]
[351019609,1738295442933,-467.93078475,0.00019102,3]
[351019610,1738295442946,-970.6059146,0.00019102,3]
[351019611,1738295442987,-1060.54499947,0.00019102,3]
[351019612,1738295443150,-29.89327357,0.00019102,3]
[351019617,1738295445959,-151.0,0.00019,2]
[351019618,1738295445969,-151.0,0.00019,2]
[351019619,1738295445979,-255.05615678,0.00019102,3]
[351019620,1738295445991,-9438.3012,0.00019102,3]
[351019621,1738295446103,-775.72086181,0.00019102,3]
[351019622,1738295446182,-960.34547969,0.00019102,3]
[351019696,1738295781386,164.29,0.00010137,2]
[351019698,1738296272908,10000.0,0.00023,120]
[351019699,1738296573155,-428.85,0.00016062,2]
[351019700,1738296573178,-500.0,0.00016204,2]
[351019701,1738296573200,-297.27083853,0.00016204,2]
[351019702,1738296573224,-164.29,0.00016813,2]
[351019712,1738296631840,-169.74,0.00017836,2]
[351019713,1738296631850,-206.0,0.00017945,2]
[351019714,1738296631860,-4.46999879,0.00018051,2]
[351019715,1738296637831,-198.89000121,0.00018051,2]
[351019716,1738296637842,-700.0,0.00018068,2]
[351019717,1738296637853,-1000.0,0.00018122,2]
[351019718,1738296637862,-151.05,0.00018212,30]
[351019719,1738296637873,-428.85,0.00018326,2]
[351019720,1738296637882,-300.0,0.00018518,2]
[351019721,1738296637892,-920.65865287,0.00018519,2]
[351019722,1738296637905,-79.33134713,0.00018519,2]
[351019723,1738296637915,-251.62403895,0.00018519,2]
[351020212,1738296642973,-447.81093681,0.00018152,2]
[351020524,1738296646085,-432.00902886,0.00018152,2]
[351020531,1738296646143,-120.18003433,0.00018152,2]
[351020533,1738296646153,-1421.35997067,0.00018519,2]